fUSD/lending_fUSD_20240701
["ID","MTS","AMOUNT","RATE_DAILY","PERIOD"]
[330861471,1719875441077,-151.0,0.00015579,2]
[330861472,1719875441086,-151.0,0.00015579,2]
[330861473,1719875441095,-151.0,0.00015579,2]
[330861474,1719875441104,-161.406701,0.00015579,2]
[330861475,1719875441113,-161.406701,0.00015579,2]
[330861476,1719875441122,-297.275552,0.00015579,2]
[330861477,1719875441131,-151.0,0.00015579,2]
[330861478,1719875441140,-176.003726,0.00015579,2]
[330861479,1719875441149,-176.00372,0.00015579,2]
[330861480,1719875441158,-2441.214553,0.00015579,2]
[330861481,1719875441166,-2441.214556,0.00015579,2]
[330861482,1719875441175,-480.963949,0.00015579,2]
[330861483,1719875441184,-480.963945,0.00015579,2]
[330861484,1719875441194,-247.94,0.00015581,2]
[330861485,1719875441203,-760.0,0.00015584,2]
[330861486,1719875441212,-247.94,0.00015585,2]
[330861487,1719875441220,-151.0,0.00015585,2]
[330861488,1719875441229,-151.0,0.00015585,2]
[330861489,1719875441238,-247.94,0.00015589,2]
[330861490,1719875441247,-247.94,0.00015593,2]
[330861492,1719875441256,-247.94,0.00015597,2]
[330861493,1719875441265,-3804.0,0.000157,5]
[330861494,1719875441275,-814.39961927,0.00015789,2]
[330861496,1719875441285,-151.0,0.00015789,2]
[330861498,1719875441294,-151.0,0.00015789,2]
[330861499,1719875441302,-151.0,0.00015789,2]
[330861500,1719875441311,-161.406701,0.00015789,2]
[330861501,1719875441321,-161.406701,0.00015789,2]
[330861502,1719875441330,-285.954816,0.00015789,2]
[330861503,1719875441339,-227.341681,0.000158,2]
[330861504,1719875441350,-227.341681,0.000158,2]
[330861505,1719875441359,-151.0,0.000158,2]
[330861506,1719875441368,-151.0,0.000158,2]
[330861507,1719875441378,-151.0,0.000158,2]
[330861508,1719875441387,-246.52,0.00015831,2]
[330861509,1719875441396,-161.51,0.00015969,2]
[330861510,1719875441406,-437.33110998,0.00016172,2]
[330861511,1719875441415,-155.26250993,0.00016172,2]
[330861512,1719875441425,-151.0,0.00016172,2]
[330861513,1719875441434,-160.441254,0.00016172,2]
[330861514,1719875441443,-151.0,0.00016172,2]
[330861515,1719875441454,-151.0,0.00016172,2]
[330861516,1719875441463,-151.0,0.00016172,2]
[330861517,1719875441473,-151.0,0.00016172,2]
[330861518,1719875441486,-151.0,0.00016172,2]
[330861519,1719875441496,-201.18507,0.00016172,2]
[330861520,1719875441505,-151.0,0.00016172,2]
[330861521,1719875441515,-161.406701,0.00016172,2]
[330861522,1719875441527,-161.406701,0.00016172,2]
[330861523,1719875441539,-151.0,0.00016178,2]
[330861524,1719875441549,-151.0,0.00016178,2]
[330861525,1719875441563,-151.0,0.00016178,2]
[330861526,1719875441573,-160.441254,0.00016178,2]
[330861527,1719875441583,-160.441254,0.00016178,2]
[330861528,1719875441594,-227.341681,0.00016178,2]
[330861529,1719875441604,-227.341681,0.00016178,2]
[330861530,1719875441614,-227.341681,0.00016178,2]
[330861531,1719875441624,-227.341681,0.00016178,2]
[330861532,1719875441782,-151.0,0.00016178,2]
[330861533,1719875441793,-151.0,0.00016178,2]
[330861534,1719875441803,-151.0,0.00016178,2]
[330861535,1719875441814,-151.0,0.00016178,2]
[330861536,1719875441825,-151.0,0.00016178,2]
[330861537,1719875441834,-151.0,0.00016178,2]
[330861538,1719875441845,-151.0,0.00016178,2]
[330861539,1719875441856,-151.0,0.00016178,2]
[330861540,1719875441867,-151.0,0.00016178,2]
[330861541,1719875441877,-161.406701,0.00016178,2]
[330861542,1719875441887,-161.406693,0.00016178,2]
[330861543,1719875441896,-263.830915,0.00016218,2]
[330861544,1719875441907,-1304.14832464,0.00016218,2]
[330861545,1719875441917,-220.156169,0.00016699,2]
[330861547,1719875441926,-160.441254,0.00016699,2]
[330861548,1719875441935,-227.341681,0.00016699,2]
[330861549,1719875441945,-227.341681,0.00016699,2]
[330861550,1719875441955,-151.0,0.00016699,2]
[330861551,1719875441964,-255.038492,0.00016699,2]
[330861552,1719875441974,-151.0,0.00016699,2]
[330861553,1719875441983,-151.0,0.00016699,2]
[330861554,1719875441993,-720.96332007,0.00016699,2]
[330861555,1719875442002,-365.05601346,0.00016699,2]
[330861556,1719875442012,-20704.75912626,0.00016733,2]
[330861557,1719875442022,-814.39961927,0.00016733,2]
[330861558,1719875442032,-5491.43867229,0.00016808,2]
[330861559,1719875442042,-150.06146514,0.00016892,2]
[330861560,1719875442053,-227.341681,0.00016945,2]
[330861561,1719875442063,-227.341681,0.00016945,2]
[330861562,1719875442074,-151.0,0.00016945,2]
[330861563,1719875442084,-160.441254,0.00016956,2]
[330861564,1719875442095,-160.441254,0.00016956,2]
[330861565,1719875442107,-227.341681,0.00016956,2]
[330861566,1719875442117,-227.341681,0.00016956,2]
[330861567,1719875442130,-151.0,0.00016956,2]
[330861568,1719875442140,-151.0,0.00016956,2]
[330861569,1719875442149,-160.441254,0.00016969,2]
[330861570,1719875442159,-160.441254,0.00016969,2]
[330861571,1719875442169,-160.441254,0.00016969,2]
[330861572,1719875442179,-160.441254,0.00016969,2]
[330861573,1719875442188,-160.441254,0.00016969,2]
[330861574,1719875442198,-160.441248,0.00016969,2]
[330861575,1719875442209,-227.341681,0.00016969,2]
[330861576,1719875442220,-227.341675,0.00016969,2]
[330861577,1719875442229,-151.0,0.00016969,2]
[330861578,1719875442239,-24636.66392128,0.00016969,2]
[330861579,1719875442250,-1304.14832464,0.00016991,2]
[330861580,1719875442261,-201.51938811,0.00017159,2]
[330861581,1719875442271,-526.547858,0.00017159,2]
[330861582,1719875442280,-155.0,0.00017159,2]
[330861583,1719875442289,-308.19482801,0.00017159,2]
[330861584,1719875442298,-269.27286365,0.00017253,2]
[330861585,1719875442308,-318.04969319,0.00017253,2]
[330861586,1719875442317,-235.41524417,0.00017257,2]
[330861587,1719875442327,-158.25040673,0.00017257,2]
[330861588,1719875442336,-760.0,0.00017532,2]
[330861589,1719875442345,-161.51,0.00017566,2]
[330861590,1719875442356,-20704.75912626,0.00017678,2]
[330861591,1719875442365,-814.39961927,0.00017678,2]
[330861592,1719875442375,-597.52,0.00018099,2]
[330861593,1719875442384,-165.46569144,0.000183,2]
[330861594,1719875442394,-20704.75912626,0.00018622,2]
[330861595,1719875442403,-814.39961927,0.00018622,2]
[330861596,1719875442412,-150.0,0.00018789,2]
[330861597,1719875442422,-540.77,0.00018849,30]
[330861598,1719875442432,-158.09,0.000189,2]
[330861599,1719875442442,-31801.65800329,0.00019,2]
[330861600,1719875442451,-778.73933,0.00019,2]
[330861601,1719875442461,-150.90846153,0.00019096,2]
[330861602,1719875442470,-150.0,0.00019137,2]
[330861603,1719875442481,-161.51,0.00019163,2]
[330861604,1719875442494,-270.0,0.00019178,2]
[330861605,1719875442504,-250.0,0.00019178,2]
[330861606,1719875442513,-165.46569144,0.00019386,2]
[330861607,1719875442524,-155.0,0.00019389,2]
[330861608,1719875442535,-760.0,0.0001948,2]
[330861609,1719875442544,-150.0,0.00019485,4]
[330861610,1719875442553,-2500.0,0.000195,2]
[330861611,1719875442565,-2003.0,0.000195,2]
[330861612,1719875442575,-20704.75912626,0.00019567,2]
[330861613,1719875442584,-814.39961927,0.00019567,2]
[330861614,1719875442593,-150.90846153,0.00019591,2]
[330861615,1719875442607,-150.0,0.00019833,4]
[330861616,1719875442616,-630.30185477,0.00019863,2]
[330861617,1719875442628,-1605.29438725,0.0002,7]
[330861618,1719875442638,-155.25696509,0.0002,2]
[330861619,1719875442647,-448.06132112,0.0002,2]
[330861620,1719875442657,-310.08129584,0.0002,3]
[330861621,1719875442667,-256.70238179,0.0002,2]
[330861622,1719875442676,-169.53,0.00020017,2]
[330861623,1719875442686,-387.51,0.00020017,2]
[330861624,1719875442695,-23900.0,0.00020017,2]
[330861625,1719875442704,-383.72,0.00020017,2]
[330861626,1719875442714,-878.54,0.00020017,2]
[330861627,1719875442723,-2751.0,0.00020017,2]
[330861628,1719875442733,-150.0,0.00020181,4]
[330861629,1719875442742,-150.90846153,0.00020211,2]
[330861630,1719875442751,-597.52,0.00020363,2]
[330861631,1719875442760,-20704.75912626,0.00020511,2]
[330861632,1719875442780,-814.39961927,0.00020511,2]
[330861633,1719875442789,-150.0,0.00020529,4]
[330861634,1719875442798,-1443.008811,0.00020592,2]
[330861635,1719875442807,-176.69104,0.00020592,2]
[330861636,1719875442816,-1695.200582,0.00020592,2]
[330861637,1719875442825,-2216.658671,0.00020592,2]
[330861638,1719875442834,-175.127575,0.00020592,2]
[330861639,1719875442843,-982.418875,0.00020592,2]
[330861640,1719875442853,-150.32777,0.00020698,2]
[330861641,1719875442862,-1715.45,0.000207,2]
[330861642,1719875442871,-638.62282837,0.00020718,2]
[330861643,1719875442879,-1013.8740308,0.00020718,2]
[330861644,1719875442888,-205233.670466,0.000208,3]
[330861645,1719875442897,-1000.0,0.00020818,7]
[330861646,1719875442906,-4279.14032286,0.0002083,15]
[330861647,1719875442916,-3294.80523525,0.00020838,2]
[330861648,1719875442925,-1443.008811,0.0002085,2]
[330861649,1719875442935,-1695.200582,0.0002085,2]
[330861650,1719875442944,-2216.658671,0.0002085,2]
[330861651,1719875442953,-982.418875,0.0002085,2]
[330861652,1719875442962,-150.0,0.00020877,4]
[330861653,1719875442973,-178.24084393,0.0002089,2]
[330861654,1719875442983,-300.0,0.00020899,2]
[330861655,1719875442993,-300.0,0.00020899,2]
[330861656,1719875443002,-300.0,0.00020899,2]
[330861657,1719875443012,-300.0,0.00020899,2]
[330861658,1719875443023,-300.0,0.00020899,2]
[330861659,1719875443032,-294283.34032623,0.000209,7]
[330861660,1719875443043,-343534.393266,0.000209,3]
[330861661,1719875443053,-11661.38,0.00020951,2]
[330861662,1719875443066,-1290.66317761,0.00021,22]
[330861663,1719875443077,-1250.0,0.00021,2]
[330861664,1719875443086,-334.60404857,0.00021037,2]
[330861665,1719875443096,-266.261514,0.00021107,2]
[330861666,1719875443106,-195.907614,0.00021107,2]
[330861667,1719875443116,-164.196938,0.00021107,2]
[330861668,1719875443125,-618.889676,0.00021107,2]
[330861669,1719875443137,-471.777521,0.00021107,2]
[330861670,1719875443148,-492.590816,0.00021107,2]
[330861671,1719875443157,-1443.008811,0.00021107,2]
[330861672,1719875443167,-1695.200582,0.00021107,2]
[330861673,1719875443177,-2216.658671,0.00021107,2]
[330861674,1719875443187,-982.418875,0.00021107,2]
[330861675,1719875443198,-176.69104,0.00021107,2]
[330861676,1719875443208,-409.230272,0.00021161,2]
[330861677,1719875443218,-408.237167,0.00021161,2]
[330861678,1719875443228,-151.0,0.00021256,2]
[330861679,1719875443238,-180.108749,0.00021279,2]
[330861680,1719875443248,-266.261514,0.00021365,2]
[330861682,1719875443258,-195.907614,0.00021365,2]
[330861684,1719875443267,-164.196938,0.00021365,2]
[330861686,1719875443277,-618.889676,0.00021365,2]
[330861688,1719875443287,-471.777521,0.00021365,2]
[330861690,1719875443297,-492.590816,0.00021365,2]
[330861692,1719875443307,-1443.008811,0.00021365,2]
[330861694,1719875443316,-1695.200582,0.00021365,2]
[330861695,1719875443326,-2216.658671,0.00021365,2]
[330861696,1719875443336,-982.418875,0.00021365,2]
[330861697,1719875443346,-760.0,0.00021428,2]
[330861698,1719875443357,-300.0,0.00021455,2]
[330861699,1719875443367,-300.0,0.00021455,2]
[330861700,1719875443377,-20704.75912626,0.00021456,2]
[330861701,1719875443387,-814.39961927,0.00021456,2]
[330861702,1719875443397,-409.230272,0.00021482,2]
[330861703,1719875443406,-408.237167,0.00021482,2]
[330861704,1719875443416,-638.62282836,0.00021559,2]
[330861705,1719875443426,-1013.8740308,0.00021559,2]
[330861706,1719875443435,-3194.0,0.000216,3]
[330861707,1719875443445,-833.0,0.000216,3]
[330861708,1719875443454,-266.261514,0.00021622,2]
[330861709,1719875443464,-195.907614,0.00021622,2]
[330861710,1719875443474,-164.196938,0.00021622,2]
[330861711,1719875443487,-618.889676,0.00021622,2]
[330861712,1719875443497,-471.777521,0.00021622,2]
[330861713,1719875443506,-492.590816,0.00021622,2]
[330861714,1719875443515,-1443.008811,0.00021622,2]
[330861715,1719875443526,-1695.200582,0.00021622,2]
[330861716,1719875443536,-2216.658671,0.00021622,2]
[330861717,1719875443545,-982.418875,0.00021622,2]
[330861718,1719875443555,-176.69104,0.00021622,2]
[330861719,1719875443565,-180.108749,0.00021622,2]
[330861720,1719875443575,-383.5,0.00021644,2]
[330861721,1719875443584,-165.71,0.00021644,2]
[330861722,1719875443594,-480.63,0.00021644,2]
[330861723,1719875443606,-657.0,0.00021692,2]
[330861724,1719875443615,-150.90846153,0.00021762,2]
[330861725,1719875443624,-150.0,0.000218,2]
[330861726,1719875443633,-409.230272,0.00021803,2]
[330861727,1719875443643,-408.237167,0.00021803,2]
[330861728,1719875443652,-10000.0,0.00021817,2]
[330861729,1719875443662,-814.0,0.00021825,2]
[330861730,1719875443671,-150.90846153,0.00021855,2]
[330861731,1719875443681,-1820.0,0.0002188,2]
[330861732,1719875443690,-358.0,0.0002188,2]
[330861733,1719875443699,-618.0,0.0002188,2]
[330861734,1719875443709,-442.0,0.0002188,2]
[330861735,1719875443718,-448.0,0.0002188,2]
[330861736,1719875443727,-166.0,0.0002188,2]
[330861737,1719875443737,-656.02,0.0002188,2]
[330861738,1719875443747,-232.0,0.000219,4]
[330861739,1719875443757,-1003.12,0.000219,2]
[330861740,1719875443767,-1064.0,0.000219,9]
[330861741,1719875443776,-491.0,0.000219,4]
[330861742,1719875443786,-257.0,0.000219,2]
[330861743,1719875443795,-191.0,0.000219,4]
[330861744,1719875443805,-275.697931,0.000219,2]
[330861745,1719875443814,-2282.00834732,0.00021903,2]
[330861746,1719875443823,-300.0,0.00021916,2]
[330861747,1719875443833,-300.0,0.00021916,2]
[330861748,1719875443842,-500.0,0.00021917,4]
[330861749,1719875443853,-500.0,0.00021917,4]
[330861750,1719875443862,-500.0,0.00021917,4]
[330861751,1719875443871,-500.0,0.00021917,4]
[330861752,1719875443880,-500.0,0.00021917,4]
[330861753,1719875443889,-500.0,0.00021917,4]
[330861754,1719875443900,-500.0,0.00021917,4]
[330861755,1719875443910,-500.0,0.00021917,4]
[330861757,1719875443919,-500.0,0.00021917,4]
[330861759,1719875443929,-500.0,0.00021917,4]
[330861761,1719875443938,-313.15103532,0.00021917,4]
[330861763,1719875443948,-500.0,0.00021917,4]
[330861765,1719875443957,-245.76021222,0.00021917,4]
[330861767,1719875443966,-500.0,0.00021917,4]
[330861769,1719875443975,-500.0,0.00021917,4]
[330861771,1719875443984,-500.0,0.00021917,4]
[330861773,1719875443993,-500.0,0.00021917,4]
[330861775,1719875444003,-512.61912542,0.00021917,4]
[330861777,1719875444012,-156.61400136,0.00021917,4]
[330861779,1719875444021,-500.0,0.00021917,4]
[330861781,1719875444030,-500.0,0.00021917,4]
[330861783,1719875444039,-227.77082062,0.00021917,4]
[330861785,1719875444049,-500.0,0.00021917,4]
[330861787,1719875444058,-500.0,0.00021917,4]
[330861789,1719875444067,-500.0,0.00021917,4]
[330861790,1719875444076,-500.0,0.00021917,4]
[330861792,1719875444086,-500.0,0.00021917,4]
[330861794,1719875444095,-500.0,0.00021917,4]
[330861796,1719875444104,-500.0,0.00021917,4]
[330861798,1719875444113,-500.0,0.00021917,4]
[330861799,1719875444123,-500.0,0.00021917,4]
[330861801,1719875444133,-500.0,0.00021917,4]
[330861806,1719875444177,-500.0,0.00021917,4]
[330861807,1719875444186,-500.0,0.00021917,4]
[330861808,1719875444196,-500.0,0.00021917,4]
[330861809,1719875444205,-500.0,0.00021917,4]
[330861810,1719875444214,-500.0,0.00021917,4]
[330861811,1719875444223,-500.0,0.00021917,4]
[330861812,1719875444232,-500.0,0.00021917,4]
[330861813,1719875444242,-500.0,0.00021917,4]
[330861814,1719875444252,-273.35420664,0.00021917,4]
[330861815,1719875444261,-886.99,0.00021917,4]
[330861816,1719875444270,-886.99,0.00021917,4]
[330861817,1719875444280,-886.99,0.00021917,4]
[330861818,1719875444290,-886.99,0.00021917,4]
[330861819,1719875444299,-500.0,0.00021917,4]
[330861820,1719875444308,-886.99,0.00021917,4]
[330861821,1719875444318,-500.0,0.00021917,4]
[330861822,1719875444328,-886.99,0.00021917,4]
[330861823,1719875444338,-500.0,0.00021917,4]
[330861824,1719875444347,-886.99,0.00021917,4]
[330861825,1719875444357,-500.0,0.00021917,4]
[330861826,1719875444366,-500.0,0.00021917,4]
[330861827,1719875444376,-886.99,0.00021917,4]
[330861828,1719875444385,-500.0,0.00021917,4]
[330861829,1719875444394,-886.99,0.00021917,4]
[330861830,1719875444404,-500.0,0.00021917,4]
[330861831,1719875444413,-886.99,0.00021917,4]
[330861832,1719875444422,-500.0,0.00021917,4]
[330861833,1719875444432,-500.0,0.00021917,4]
[330861834,1719875444442,-886.99,0.00021917,4]
[330861835,1719875444451,-500.0,0.00021917,4]
[330861836,1719875444461,-500.0,0.00021917,4]
[330861837,1719875444471,-500.0,0.00021917,4]
[330861838,1719875444482,-500.0,0.00021917,4]
[330861839,1719875444493,-500.0,0.00021917,4]
[330861840,1719875444501,-537.73,0.00021917,4]
[330861841,1719875444511,-500.0,0.00021917,4]
[330861842,1719875444524,-500.0,0.00021917,4]
[330861843,1719875444533,-194.15,0.00021917,4]
[330861844,1719875444543,-500.0,0.00021917,4]
[330861845,1719875444552,-500.0,0.00021917,4]
[330861846,1719875444566,-500.0,0.00021917,4]
[330861847,1719875444575,-500.0,0.00021917,4]
[330861848,1719875444584,-500.0,0.00021917,4]
[330861849,1719875444594,-500.0,0.00021917,4]
[330861850,1719875444604,-500.0,0.00021917,4]
[330861851,1719875444613,-500.0,0.00021917,4]
[330861852,1719875444627,-500.0,0.00021917,4]
[330861853,1719875444636,-500.0,0.00021917,4]
[330861854,1719875444645,-438.45,0.00021918,2]
[330861855,1719875444655,-150.21,0.00021918,2]
[330861856,1719875444664,-151.55,0.00021918,2]
[330861857,1719875444674,-151.0,0.00021918,2]
[330861858,1719875444684,-151.0,0.00021918,2]
[330861859,1719875444694,-151.0,0.00021918,2]
[330861860,1719875444704,-206.546188,0.00021918,2]
[330861861,1719875444713,-169.39,0.00021919,2]
[330861862,1719875444723,-151.0,0.00021954,2]
[330861863,1719875444733,-209.66596824,0.0002197,2]
[330861864,1719875444743,-5918.68096825,0.0002197,2]
[330861865,1719875444754,-234.19824604,0.00021971,2]
[330861866,1719875444764,-500.0,0.0002198,2]
[330861867,1719875444774,-1000.0,0.00021984,10]
[330861868,1719875444783,-500.0,0.00021988,2]
[330861869,1719875444794,-500.0,0.00021997,2]
[330861870,1719875444804,-300.0,0.00021999,2]
[330861871,1719875444813,-300.0,0.00021999,2]
[330861872,1719875444823,-1800.0,0.00022,23]
[330861873,1719875444832,-50050.0,0.00022,2]
[330861874,1719875444842,-500.0,0.00022006,2]
[330861875,1719875444851,-500.0,0.00022015,2]
[330861876,1719875444861,-500.0,0.00022024,2]
[330861877,1719875444870,-814.0,0.0002205,2]
[330861878,1719875444879,-356.0,0.000221,2]
[330861879,1719875444888,-790.0,0.000221,2]
[330861880,1719875444898,-409.230272,0.00022123,2]
[330861881,1719875444909,-408.237167,0.00022123,2]
[330861882,1719875444918,-32743.96222008,0.000222,2]
[330861883,1719875444927,-2500.0,0.000222,2]
[330861884,1719875444938,-2003.04176936,0.000222,2]
[330861885,1719875444947,-151.0,0.00022227,2]
[330861886,1719875444957,-814.0,0.00022275,2]
[330861887,1719875444967,-150.0,0.00022278,2]
[330861888,1719875444976,-500.0,0.00022318,2]
[330861889,1719875444985,-200.0,0.00022318,2]
[330861890,1719875444995,-500.0,0.00022319,2]
[330861891,1719875445004,-500.0,0.00022319,2]
[330861892,1719875445014,-200.0,0.00022319,2]
[330861893,1719875445023,-150.0,0.00022325,2]
[330861894,1719875445033,-491.0,0.000224,5]
[330861895,1719875445042,-191.0,0.000224,5]
[330861896,1719875445051,-733.1783,0.000224,2]
[330861897,1719875445061,-20704.75912626,0.000224,2]
[330861898,1719875445070,-1064.0,0.000224,10]
[330861899,1719875445079,-150.0,0.000224,3]
[330861900,1719875445089,-814.39961927,0.000224,2]
[330861901,1719875445100,-638.62282836,0.000224,2]
[330861902,1719875445109,-1013.8740308,0.000224,2]
[330861903,1719875445118,-322.6471014,0.000224,2]
[330861904,1719875445128,-150.0,0.00022438,2]
[330861905,1719875445138,-5100.0,0.0002244,3]
[330861906,1719875445147,-5100.0,0.0002244,5]
[330861907,1719875445156,-5100.0,0.0002244,2]
[330861908,1719875445166,-409.230272,0.00022444,2]
[330861909,1719875445175,-408.237167,0.00022444,2]
[330861910,1719875445185,-500.0,0.00022484,4]
[330861911,1719875445194,-500.0,0.00022484,4]
[330861912,1719875445204,-10415.4523007,0.00022485,2]
[330861913,1719875445213,-8984.5638427,0.00022485,2]
[330861914,1719875445223,-7553.6753848,0.00022485,2]
[330861915,1719875445232,-6122.7869268,0.00022485,2]
[330861916,1719875445242,-4691.8984688,0.00022485,2]
[330861917,1719875445251,-150.0,0.00022488,2]
[330861918,1719875445261,-11846.3407587,0.00022488,2]
[330861919,1719875445270,-886.99,0.00022498,4]
[330861920,1719875445280,-1424.44476162,0.00022499,10]
[330861921,1719875445290,-151.0,0.00022499,2]
[330861922,1719875445299,-500.0,0.00022499,4]
[330861923,1719875445308,-500.0,0.00022499,4]
[330861924,1719875445317,-500.0,0.00022499,4]
[330861925,1719875445327,-487.38087458,0.00022499,4]
[330861926,1719875445335,-886.99,0.00022499,4]
[330861927,1719875445345,-886.99,0.00022499,4]
[330861928,1719875445354,-886.99,0.00022499,4]
[330861929,1719875445364,-886.99,0.00022499,4]
[330861930,1719875445373,-886.99,0.00022499,4]
[330861931,1719875445383,-886.99,0.00022499,4]
[330861932,1719875445392,-886.99,0.00022499,4]
[330861933,1719875445401,-886.99,0.00022499,4]
[330861934,1719875445410,-886.99,0.00022499,4]
[330861935,1719875445419,-886.99,0.00022499,4]
[330861936,1719875445429,-886.99,0.00022499,4]
[330861937,1719875445438,-887.05310618,0.00022499,4]
[330861938,1719875445447,-500.0,0.00022499,4]
[330861939,1719875445456,-500.0,0.00022499,4]
[330861940,1719875445466,-500.0,0.00022499,4]
[330861941,1719875445475,-500.0,0.00022499,4]
[330861942,1719875445487,-500.0,0.00022499,4]
[330861943,1719875445496,-500.0,0.00022499,4]
[330861944,1719875445505,-500.0,0.00022499,4]
[330861945,1719875445514,-207.56930117,0.000225,5]
[330861946,1719875445525,-603975.28336287,0.000225,120]
[330861947,1719875445534,-356163.59585887,0.000225,120]
[330861948,1719875445694,-307782.97250004,0.000225,120]
[330861949,1719875445706,-272.7062847,0.000225,120]
[330861950,1719875445734,-222.61749785,0.00014499,2]
[330861951,1719875445743,-72.60089668,0.00014844,2]
[330861952,1719875445756,-313.71672132,0.00014844,2]
[330861953,1719875445766,-187.32446467,0.000225,120]
[330861954,1719875445844,-386.317618,0.000152,2]
[330861955,1719875445855,-302.83238201,0.000152,2]
[330861956,1719875445866,-83.48523599,0.000152,2]
[330861957,1719875445875,-237.3584633,0.00015287,2]
[330861958,1719875445886,-67.51552801,0.00015287,2]
[330861959,1719875445895,-386.317618,0.00015335,2]
[330861960,1719875445904,-17.33132058,0.00015479,2]
[330861961,1719875445915,-266.60582963,0.00015479,2]
[330861962,1719875446009,-264.74665486,0.00014005,2]
[330861963,1719875446020,-121.57096314,0.00014005,2]
[330861964,1719875446029,-151.0,0.00014005,2]
[330861965,1719875446038,-107.42334415,0.00014844,2]
[330861966,1719875446049,-278.89427385,0.00014844,2]
[330861967,1719875446058,-34.66995143,0.00014844,2]
[330861968,1719875446070,-351.64766657,0.00014844,2]
[330861969,1719875446080,-153.44876083,0.00014844,2]
[330861970,1719875446090,-232.86885717,0.00014844,2]
[330861971,1719875446100,-159.20718091,0.000152,2]
[330861972,1719875446117,-227.11043709,0.000152,2]
[330861973,1719875446126,-240.12247621,0.000152,2]
[330861980,1719875446509,-146.19514179,0.000152,2]
[330861981,1719875446519,-126.45366195,0.00015335,2]
[330861982,1719875446531,-259.86395605,0.00015335,2]
[330861983,1719875446541,-14.23107547,0.00015479,2]
[330861984,1719875446676,-88.14939232,0.00015479,2]
[330861985,1719875446687,-206.81030058,0.00015479,2]
[330862020,1719875876759,10000.0,0.00020975,90]
[330862027,1719875948029,10000.0,0.000185,60]
[330862034,1719876174011,4594.8332962,0.000222,120]
[330862044,1719876452776,69.8,0.000221,120]
[330862045,1719876452809,9930.2,0.000221,120]
[330862049,1719876580873,10000.0,0.00020975,90]
[330862050,1719876600713,10000.0,0.0001601,30]
[330862052,1719876631566,-435.0681,0.00013172,2]
[330862054,1719876631576,-487.46332088,0.00013759,2]
[330862055,1719876631591,-138.18138871,0.00013759,2]
[330862057,1719876631600,-308.19482801,0.00013899,2]
[330862060,1719876631610,-35.34188732,0.00013989,2]
[330862063,1719876631621,-119.65811268,0.00013989,2]
[330862065,1719876631630,-219.67573938,0.00013989,2]
[330862067,1719876631639,-160.07422208,0.00013989,2]
[330862073,1719876631740,-66.99743372,0.00013989,2]
[330862074,1719876631749,-300.0,0.00014999,2]
[330862075,1719876631758,-6199.03866222,0.00015,2]
[330862076,1719876631771,-4626.84189694,0.00015,2]
[330862077,1719876631781,-1401.82347801,0.00015535,7]
[330862078,1719876631790,-848.18,0.0001726,2]
[330862079,1719876631799,-299.99,0.0001726,4]
[330862080,1719876631808,-113.13209785,0.00017534,2]
[330862081,1719876631820,-386.85790215,0.00017534,2]
[330862082,1719876631829,-1304.14832464,0.00017764,2]
[330862083,1719876631842,-554.66,0.00018099,2]
[330862084,1719876631851,-1304.14832464,0.00018536,2]
[330862085,1719876631860,-150.90846153,0.0001885,2]